bitfinex/quotes_BTCUSD_20230109
["timestamp","ask_amount","ask_price","bid_price","bid_amount"]
[1673294677086,1.06839822,17280.0,17279.0,0.2186648]
[1673294677346,1.76401051,17280.0,17279.0,0.2186648]
[1673294677602,1.28807451,17280.0,17279.0,0.2186648]
[1673294677851,1.42307451,17280.0,17279.0,0.2186648]
[1673294678622,0.14663033,17280.0,17279.0,0.2186648]
[1673294679136,0.14764102,17280.0,17279.0,0.2186648]
[1673294680503,0.84098164,17280.0,17279.0,0.2186648]
[1673294681017,0.83997095,17280.0,17279.0,0.2186648]
[1673294681584,0.83997095,17280.0,17279.0,0.17023263]
[1673294681852,0.14669033,17280.0,17279.0,0.17023263]
[1673294682564,0.14663033,17280.0,17279.0,0.17023263]
[1673294682819,0.14663033,17280.0,17279.0,0.57023263]
[1673294683358,0.14663033,17280.0,17279.0,0.17023263]
[1673294683868,0.14764102,17280.0,17279.0,0.17023263]
[1673294684386,0.14663033,17280.0,17279.0,0.17023263]
[1673294684904,0.14764102,17280.0,17279.0,0.17023263]
[1673294685671,0.14764102,17280.0,17279.0,0.17003263]
[1673294685672,0.14663033,17280.0,17279.0,0.17003263]
[1673294685954,0.14663033,17280.0,17279.0,0.86016963]
[1673294686442,0.14663033,17280.0,17279.0,1.43890663]
[1673294688227,0.14764102,17280.0,17279.0,1.43890663]
[1673294688749,0.14663033,17280.0,17279.0,1.28342964]
[1673294689508,0.14663033,17280.0,17279.0,1.17499771]
[1673294689855,0.14663033,17280.0,17279.0,1.92624412]
[1673294690044,0.14663033,17280.0,17279.0,2.32624412]
[1673294690562,0.14663033,17280.0,17279.0,6.24321631]
[1673294690826,0.14663033,17280.0,17279.0,6.07931242]
[1673294691363,0.14663033,17280.0,17279.0,5.64767001]
[1673294691624,0.14663033,17280.0,17279.0,5.70557704]
[1673294691867,0.14663033,17280.0,17279.0,6.80538091]
[1673294692124,0.01163033,17280.0,17279.0,7.30548091]
[1673294692388,3.033e-05,17280.0,17279.0,6.80468091]
[1673294692646,6e-05,17281.0,17280.0,0.4]
[1673294692892,6e-05,17281.0,17280.0,2.50668071]
[1673294693183,6e-05,17281.0,17280.0,4.03579986]
[1673294693456,6e-05,17281.0,17280.0,4.83610286]
[1673294693750,0.01406,17281.0,17280.0,4.84160286]
[1673294694027,0.01406,17281.0,17280.0,4.9590355]
[1673294694284,0.01406,17281.0,17280.0,4.49558883]
[1673294694540,0.01406,17281.0,17280.0,4.84153678]
[1673294695606,0.00064689,17281.0,17280.0,4.84153678]
[1673294696132,0.00064689,17281.0,17280.0,4.49558883]
[1673294696386,0.00064689,17281.0,17280.0,4.49542211]
[1673294696639,0.00064689,17281.0,17280.0,4.06307247]
[1673294697753,0.00064689,17281.0,17280.0,4.49542579]
[1673294698445,0.00064689,17281.0,17280.0,4.84129458]
[1673294699225,0.00064689,17281.0,17280.0,12.34129458]
[1673294700316,0.00064689,17281.0,17280.0,11.99646934]
[1673294700587,0.00064689,17281.0,17280.0,11.99641424]
[1673294702932,0.00064689,17281.0,17280.0,4.49641424]
[1673294703215,0.00064689,17281.0,17280.0,2.60102394]
[1673294703465,0.00058029,17281.0,17280.0,1.93449752]
[1673294703714,0.00058029,17281.0,17280.0,2.75445709]
[1673294703963,0.00058029,17281.0,17280.0,2.92735413]
[1673294704262,0.00058029,17281.0,17280.0,3.03875413]
[1673294704479,0.00058029,17281.0,17280.0,3.50107442]
[1673294704737,0.00058029,17281.0,17280.0,3.80107442]
[1673294705252,0.00159098,17281.0,17280.0,3.03876445]
[1673294705593,0.00058029,17281.0,17280.0,2.20380055]
[1673294705794,0.00058029,17281.0,17280.0,0.87350435]
[1673294705795,1.21098782,17281.0,17280.0,0.87350435]
[1673294706055,0.97330993,17281.0,17280.0,0.37710435]
[1673294706312,0.97432062,17281.0,17280.0,0.37710435]
[1673294707093,0.97432062,17281.0,17280.0,0.18689704]
[1673294707831,0.97374033,17281.0,17280.0,0.17289704]
[1673294708084,0.97374033,17281.0,17280.0,0.19889704]
[1673294708085,0.98774033,17281.0,17280.0,0.19889704]
[1673294708331,0.97272964,17281.0,17280.0,0.17289704]
[1673294708577,0.97972964,17281.0,17280.0,0.19689704]
[1673294708835,0.67463964,17281.0,17280.0,0.19689704]
[1673294709090,0.007,17281.0,17280.0,0.19689704]
[1673294710358,0.007,17281.0,17280.0,0.77560004]
[1673294710601,0.007,17281.0,17280.0,1.10243894]
[1673294711106,0.007,17281.0,17280.0,1.32403894]
[1673294711365,0.007,17281.0,17280.0,2.93041085]
[1673294711620,0.007,17281.0,17280.0,3.2762248]
[1673294712372,0.007,17281.0,17280.0,10.60327373]
[1673294714132,0.00801069,17281.0,17280.0,9.4606669]
[1673294714389,0.00801069,17281.0,17280.0,9.00825174]
[1673294714668,0.007,17281.0,17280.0,9.00825174]
[1673294715972,0.007,17281.0,17280.0,8.42954874]
[1673294719025,0.007,17281.0,17280.0,0.92954874]
[1673294719283,0.31310069,17281.0,17280.0,0.19689704]
[1673294720334,0.00801069,17281.0,17280.0,0.49689704]
[1673294720584,0.007,17281.0,17280.0,0.49689704]
[1673294721133,0.007,17281.0,17280.0,7.99689704]
[1673294721363,0.007,17281.0,17280.0,8.16980517]
[1673294721598,0.007,17281.0,17280.0,8.74850817]
[1673294721861,0.007,17281.0,17280.0,9.32721117]
[1673294722107,0.007,17281.0,17280.0,8.74850817]
[1673294722610,0.007,17281.0,17280.0,9.41689865]
[1673294722856,0.007,17281.0,17280.0,10.92500244]
[1673294723095,0.007,17281.0,17280.0,10.45233191]
[1673294723346,0.007,17281.0,17280.0,10.75233191]
[1673294723589,0.007,17281.0,17280.0,11.75233191]
[1673294723855,0.007,17281.0,17280.0,11.33103491]
[1673294724113,0.007,17281.0,17280.0,11.03103491]
[1673294725627,0.58010877,17281.0,17280.0,1.68372591]
[1673294725878,0.81879735,17281.0,17280.0,0.19689704]
[1673294726125,0.81879735,17281.0,17280.0,0.36080093]
[1673294726126,0.007,17281.0,17280.0,0.36080093]
[1673294726410,0.007,17281.0,17280.0,2.10022829]
[1673294726659,0.007,17281.0,17280.0,2.38957829]
[1673294726920,0.007,17281.0,17280.0,2.88490038]
[1673294727184,0.007,17281.0,17280.0,4.80935526]
[1673294727446,0.007,17281.0,17280.0,6.29783233]
[1673294727701,0.00039843,17281.0,17280.0,5.95208045]
[1673294727962,0.00039843,17281.0,17280.0,6.29842294]
[1673294728728,0.00039843,17281.0,17280.0,5.29848252]
[1673294728958,0.00039843,17281.0,17280.0,4.88708252]
[1673294729208,0.00039843,17281.0,17280.0,4.71459409]
[1673294729704,0.00039843,17281.0,17280.0,5.18708252]
[1673294730716,1.26095758,17281.0,17280.0,1.21184226]
[1673294731001,1.60194969,17281.0,17280.0,0.19689704]
[1673294731231,1.38521569,17281.0,17280.0,0.19689704]
[1673294731726,1.38521569,17281.0,17280.0,0.17289704]
[1673294731727,1.38481726,17281.0,17280.0,0.17289704]
[1673294731971,1.05388126,17281.0,17280.0,0.17689704]
[1673294732459,1.08488126,17281.0,17280.0,0.18089704]
[1673294732945,1.44681726,17281.0,17280.0,0.18089704]
[1673294733194,2.24222126,17281.0,17280.0,0.18089704]
[1673294733439,2.71555726,17281.0,17280.0,0.18089704]
[1673294733684,2.35362126,17281.0,17280.0,0.20456705]
[1673294733930,2.71555726,17281.0,17280.0,0.20376705]
[1673294734192,2.35362126,17281.0,17280.0,0.20376705]
[1673294734433,3.1995246,17281.0,17280.0,0.20376705]
[1673294736274,2.71555726,17281.0,17280.0,0.20376705]
[1673294736507,2.71555726,17281.0,17280.0,0.18009704]
[1673294737516,2.71555726,17281.0,17280.0,0.20202067]
[1673294738016,3.1995246,17281.0,17280.0,0.20202067]
[1673294739011,2.71555726,17281.0,17280.0,0.20202067]
[1673294739772,1.46885057,17281.0,17280.0,0.20202067]
[1673294740260,1.46986126,17281.0,17280.0,0.20202067]
[1673294740514,0.89018057,17281.0,17280.0,0.20202067]
[1673294741289,0.89018057,17281.0,17280.0,0.02992363]
[1673294741290,0.89119126,17281.0,17280.0,0.02992363]
[1673294741528,0.89018057,17281.0,17280.0,0.02992363]
[1673294742336,0.89119126,17281.0,17280.0,0.02992363]
[1673294743827,1.25312726,17281.0,17280.0,0.02992363]
[1673294744572,0.89119126,17281.0,17280.0,0.02992363]
[1673294744831,1.25312726,17281.0,17280.0,0.02992363]
[1673294746621,0.1734,17281.0,17280.0,0.02992363]
[1673294750166,0.17441069,17281.0,17280.0,0.02992363]
[1673294750932,0.1734,17281.0,17280.0,0.02992363]
[1673294751431,0.1734,17281.0,17280.0,0.008]
[1673294751938,0.535336,17281.0,17280.0,0.008]
[1673294752176,0.53634669,17281.0,17280.0,0.008]
[1673294753513,0.53634669,17281.0,17280.0,0.02995987]
[1673294754484,0.53634669,17281.0,17280.0,0.008]
[1673294755058,1.11501669,17281.0,17280.0,0.008]
[1673294755506,1.114006,17281.0,17280.0,0.00404355]
[1673294755754,0.1734,17281.0,17280.0,0.003]
[1673294757795,0.1734,17281.0,17280.0,0.02495987]
[1673294758527,0.1734,17281.0,17280.0,0.003]
[1673294759028,0.17441069,17281.0,17280.0,0.003]
[1673294759279,0.53634669,17281.0,17280.0,0.003]
[1673294759517,0.53634669,17281.0,17280.0,0.02495987]
[1673294760269,0.4,17280.0,17277.0,0.76280989]
[1673294760526,0.74907789,17280.0,17278.0,0.578751]
[1673294760810,0.5114,17280.0,17277.0,0.76280989]
[1673294761055,0.74907789,17280.0,17277.0,1.34160089]
[1673294761549,0.74907789,17280.0,17277.0,1.33660089]
[1673294761550,0.5114,17280.0,17277.0,1.33660089]
[1673294762336,0.5264,17280.0,17277.0,1.35660089]
[1673294763099,0.90897727,17279.0,17277.0,0.17267548]
[1673294763347,0.90897727,17279.0,17277.0,0.02]
[1673294763591,1.82877538,17279.0,17277.0,0.02]
[1673294763840,0.00101069,17278.0,17277.0,0.02]
[1673294764099,0.30610069,17278.0,17276.0,0.43057494]
[1673294765380,0.30610069,17278.0,17276.0,0.61411818]
[1673294765655,0.4,17277.0,17273.0,0.68068825]
[1673294765923,0.4,17277.0,17274.0,0.978877]
[1673294765924,0.23767789,17276.0,17274.0,0.978877]
[1673294766147,0.00101069,17276.0,17274.0,1.1455624]
[1673294766493,1.29070027,17278.0,17274.0,1.1455624]
[1673294766666,0.72792527,17278.0,17276.0,0.002]
[1673294766928,0.4,17277.0,17275.0,0.578864]
[1673294767170,0.015,17276.0,17275.0,0.73821208]
[1673294767930,0.015,17276.0,17275.0,1.71708308]
[1673294768982,0.56054527,17278.0,17275.0,2.0805151]
[1673294769240,0.54554527,17278.0,17275.0,1.88098697]
[1673294769485,0.54554527,17278.0,17276.0,0.4]
[1673294769744,0.54554527,17278.0,17276.0,1.557645]
[1673294770522,0.00015,17278.0,17276.0,1.72154889]
[1673294770764,0.00015,17278.0,17276.0,1.559645]
[1673294771024,0.014,17278.0,17276.0,2.138482]
[1673294771273,0.01501069,17278.0,17276.0,2.138482]
[1673294771540,0.014,17278.0,17276.0,2.138482]
[1673294772287,0.01501069,17278.0,17276.0,2.138482]
[1673294772807,0.014,17278.0,17276.0,2.30238589]
[1673294773056,0.014,17278.0,17277.0,0.65834415]
[1673294773315,0.014,17278.0,17277.0,2.39475615]
[1673294773567,0.014,17278.0,17277.0,2.55356588]
[1673294773822,0.014,17278.0,17277.0,2.90029608]
[1673294774373,0.014,17278.0,17277.0,2.26416588]
[1673294774606,0.64957747,17280.0,17277.0,2.52421987]
[1673294774896,0.64957747,17280.0,17278.0,0.4]
[1673294775151,0.00101069,17279.0,17278.0,1.5575]
[1673294775406,0.64957747,17280.0,17278.0,1.5575]
[1673294775907,0.65657747,17280.0,17278.0,1.5575]
[1673294776155,0.00101069,17279.0,17278.0,1.5575]
[1673294776422,0.05,17279.0,17278.0,1.5575]
[1673294776699,0.4,17281.0,17278.0,1.73086969]
[1673294776942,0.4,17281.0,17278.0,2.47354358]
[1673294777320,0.05,17280.0,17278.0,2.47354358]
[1673294777449,0.05,17280.0,17278.0,2.30963969]
[1673294777999,2.38925501,17282.0,17278.0,2.30963969]
[1673294778275,0.05,17279.0,17278.0,2.47354358]
[1673294778532,2.13199102,17282.0,17278.0,2.30963969]
[1673294778776,2.53199102,17282.0,17278.0,2.73359757]
[1673294779087,2.19101591,17282.0,17278.0,2.73359757]
[1673294779290,2.24101591,17282.0,17278.0,2.47354358]
[1673294779558,0.70754571,17281.0,17278.0,2.37389348]
[1673294779823,0.53525701,17279.0,17278.0,0.37255426]
[1673294780092,1.1348709,17279.0,17277.0,0.89139278]
[1673294780353,1.1348709,17279.0,17277.0,0.58082134]
[1673294780354,0.7729349,17279.0,17277.0,0.58082134]
[1673294780705,0.7729349,17279.0,17276.0,1.41224268]
[1673294780706,0.2,17278.0,17276.0,1.56828701]
[1673294780909,0.82536209,17278.0,17276.0,0.33470877]
[1673294781171,0.77536209,17278.0,17276.0,0.33470877]
[1673294781680,0.77536209,17278.0,17275.0,0.57336969]
[1673294782057,1.01303998,17278.0,17275.0,0.36523765]
[1673294782471,1.02703998,17278.0,17276.0,0.002]
[1673294782850,0.4,17277.0,17275.0,0.07969612]
[1673294783036,0.78936209,17278.0,17275.0,0.25306581]
[1673294783406,0.62536209,17278.0,17276.0,0.17336969]
[1673294783570,0.62637278,17278.0,17276.0,0.17336969]
[1673294784503,0.63337278,17278.0,17276.0,0.17336969]
[1673294784872,0.63337278,17278.0,17275.0,1.25579269]
[1673294784873,0.5428035,17277.0,17275.0,1.25579269]
[1673294785125,0.5428035,17277.0,17275.0,0.25296581]
[1673294785638,0.5428035,17277.0,17275.0,0.21871129]
[1673294785919,0.5428035,17277.0,17275.0,0.0453416]
[1673294786183,0.13856,17276.0,17275.0,0.0453416]
[1673294786948,0.13856,17276.0,17273.0,1.60149186]
[1673294786949,0.37623789,17276.0,17273.0,0.43342368]
[1673294787260,0.23868858,17276.0,17273.0,0.1829704]
[1673294787725,0.63868858,17276.0,17275.0,0.0307558]
[1673294787984,0.41501069,17276.0,17275.0,0.02650881]
[1673294788285,0.77694669,17276.0,17275.0,0.01405604]
[1673294788541,0.4,17275.0,17273.0,0.1829704]
[1673294788786,0.4,17275.0,17272.0,0.57495018]
[1673294788787,0.00101069,17274.0,17272.0,0.57495018]
[1673294789052,0.23868858,17274.0,17272.0,0.57378268]
[1673294789311,0.00101069,17274.0,17272.0,0.57378268]
[1673294789562,0.00101069,17274.0,17272.0,0.56103004]
[1673294790064,0.00101069,17274.0,17272.0,0.54911614]
[1673294790313,0.30610069,17274.0,17273.0,0.0085]
[1673294790579,0.30610069,17274.0,17272.0,0.50106748]
[1673294790844,0.18154069,17274.0,17272.0,0.50034098]
[1673294791107,0.014,17274.0,17272.0,0.50034098]
[1673294791626,0.014,17274.0,17273.0,0.02828022]
[1673294792146,0.01406,17274.0,17273.0,0.02616375]
[1673294792438,0.01406,17274.0,17272.0,0.49750312]
[1673294792684,0.01406,17274.0,17272.0,0.49760335]
[1673294792948,6e-05,17274.0,17272.0,0.49760335]
[1673294793202,0.00706,17274.0,17272.0,1.07646712]
[1673294793454,6e-05,17274.0,17272.0,0.91464612]
[1673294793758,0.01406,17274.0,17272.0,0.91474635]
[1673294794452,0.01507069,17274.0,17272.0,0.91464612]
[1673294794710,0.25274858,17274.0,17272.0,0.16817881]
[1673294794975,0.23767789,17273.0,17268.0,0.43282002]
[1673294795229,0.4,17272.0,17268.0,0.77907603]
[1673294795474,0.1107,17273.0,17268.0,0.77907603]
[1673294795475,0.4,17273.0,17270.0,0.4]
[1673294795729,1.26096,17274.0,17270.0,0.55573159]
[1673294795997,1.26096,17274.0,17271.0,0.16390389]
[1673294796254,1.24696,17274.0,17271.0,0.16390389]
[1673294796520,0.014,17272.0,17271.0,0.33857965]
[1673294796777,0.55918475,17273.0,17271.0,0.17467576]
[1673294797031,0.00101069,17273.0,17271.0,0.17467576]
[1673294797283,6e-05,17274.0,17272.0,1.38660389]
[1673294797634,6e-05,17274.0,17273.0,0.978938]
[1673294797829,6e-05,17274.0,17273.0,1.15766403]
[1673294798067,6e-05,17274.0,17273.0,2.0516117]
[1673294798318,6e-05,17274.0,17273.0,2.92126149]
[1673294798579,6e-05,17274.0,17273.0,3.14406149]
[1673294798580,0.05106,17274.0,17273.0,3.14406149]
[1673294798845,0.05106,17274.0,17273.0,3.39406149]
[1673294799108,0.02050549,17274.0,17273.0,2.8223817]
[1673294799642,0.02050549,17274.0,17273.0,4.11517878]
[1673294799916,0.00015,17276.0,17273.0,3.76911345]
[1673294800203,0.00015,17276.0,17275.0,1.2225]
[1673294800414,0.00015,17276.0,17275.0,3.83071141]
[1673294800660,0.00015,17276.0,17275.0,2.89711844]
[1673294800922,0.014,17276.0,17275.0,3.89711844]
[1673294801174,0.92115619,17280.0,17275.0,4.14711844]
[1673294801439,0.92115619,17280.0,17277.0,1.5108]
[1673294801728,0.52115619,17280.0,17277.0,1.85878916]
[1673294801966,0.4,17281.0,17277.0,1.85878916]
[1673294802222,1.01721046,17281.0,17278.0,0.16390389]
[1673294802755,0.05001069,17280.0,17278.0,0.16390389]
[1673294803044,0.61721046,17281.0,17277.0,2.5815953]
[1673294803294,0.97788835,17281.0,17278.0,0.006]
[1673294803558,1.01721046,17281.0,17277.0,2.43759216]
[1673294803817,0.123,17280.0,17278.0,0.006]
[1673294804300,1.25488835,17281.0,17277.0,2.68759216]
[1673294804588,1.30388835,17281.0,17277.0,3.27239416]
[1673294805412,1.10953662,17279.0,17277.0,0.44008527]
[1673294805603,1.10953662,17279.0,17277.0,0.25]
[1673294805604,1.34721451,17279.0,17277.0,0.25]
[1673294805874,0.30610069,17278.0,17277.0,0.25]
[1673294806393,0.54377858,17278.0,17277.0,0.25]
[1673294806685,1.06803669,17278.0,17277.0,0.25]
[1673294807164,0.4,17277.0,17272.0,0.54690592]
[1673294807414,0.23767789,17276.0,17273.0,0.4]
[1673294807664,0.00101069,17275.0,17273.0,1.0]
[1673294807983,0.23767789,17276.0,17273.0,1.17304333]
[1673294808201,2.55277892,17277.0,17273.0,2.02728522]
[1673294808456,2.55251252,17277.0,17274.0,0.42111036]
[1673294808723,0.00101069,17276.0,17274.0,0.58501425]
[1673294808979,0.011,17275.0,17274.0,0.42111036]
[1673294809266,0.011,17275.0,17274.0,0.02111036]
[1673294809511,0.14956,17275.0,17274.0,0.02111036]
[1673294809750,0.85697524,17275.0,17274.0,0.02111036]
[1673294810031,1.09465313,17275.0,17274.0,0.02111036]
[1673294810298,1.24597524,17275.0,17274.0,0.02111036]
[1673294810552,1.60791124,17275.0,17274.0,0.02111036]
[1673294810871,1.24597524,17275.0,17274.0,0.02111036]
[1673294812079,1.82884624,17275.0,17274.0,0.04911036]
[1673294812334,2.19078224,17275.0,17274.0,0.02111036]
[1673294812588,2.31378224,17275.0,17274.0,0.02711036]
[1673294812836,1.95184624,17275.0,17274.0,0.02711036]
[1673294813101,1.81328624,17275.0,17274.0,0.02711036]
[1673294813389,0.127,17275.0,17274.0,0.02711036]
[1673294813918,0.127,17275.0,17274.0,0.19101425]
[1673294814166,0.127,17275.0,17274.0,0.02711036]
[1673294814418,0.127,17275.0,17274.0,1.69631836]
[1673294814670,0.127,17275.0,17274.0,1.99631836]
[1673294814942,0.127,17275.0,17274.0,2.16936169]
[1673294815195,0.127,17275.0,17274.0,3.48235182]
[1673294815452,0.127,17275.0,17274.0,3.00933059]
[1673294815956,0.00015,17276.0,17274.0,3.00337866]
[1673294816205,0.00015,17276.0,17274.0,1.93236169]
[1673294816206,0.011,17275.0,17274.0,1.93236169]
[1673294816471,0.70616211,17279.0,17274.0,1.69031836]
[1673294816725,0.70616211,17279.0,17274.0,1.85422225]
[1673294816726,0.94384,17279.0,17274.0,1.85422225]
[1673294816973,0.011,17275.0,17274.0,1.92322225]
[1673294817218,0.011,17275.0,17274.0,1.75931836]
[1673294817729,0.4,17278.0,17274.0,1.29031836]
[1673294817985,0.4,17278.0,17274.0,1.24791836]
[1673294817986,0.00015,17276.0,17274.0,1.24791836]
[1673294818234,0.23782789,17276.0,17274.0,0.02111036]
[1673294818487,0.31609,17275.0,17274.0,0.09011036]
[1673294818737,0.30509,17275.0,17274.0,0.02111036]
[1673294818983,0.30509,17275.0,17274.0,0.09011036]
[1673294818984,0.30610069,17275.0,17274.0,0.09011036]
[1673294819260,0.30610069,17275.0,17274.0,0.02111036]
[1673294819500,0.30610069,17275.0,17274.0,0.04111036]
[1673294819759,0.30610069,17275.0,17274.0,0.02111036]
[1673294820025,0.00101069,17275.0,17274.0,0.02111036]
[1673294820278,0.4,17276.0,17274.0,0.02111036]
[1673294820866,0.003,17275.0,17274.0,0.04111036]
[1673294821283,0.00401069,17275.0,17274.0,0.04111036]
[1673294821567,0.00101069,17275.0,17274.0,0.02111036]
[1673294821823,0.00101069,17275.0,17274.0,0.04111036]
[1673294822069,0.00101069,17275.0,17274.0,0.02111036]
[1673294822321,0.00401069,17275.0,17274.0,0.04111036]
[1673294822568,0.003,17275.0,17274.0,0.04111036]
[1673294822838,0.003,17275.0,17274.0,0.02]
[1673294823390,0.003,17275.0,17274.0,0.42]
[1673294823623,0.003,17275.0,17274.0,0.44123067]
[1673294824615,0.003,17275.0,17274.0,0.42]
[1673294825688,0.003,17275.0,17274.0,0.44123067]
[1673294827220,0.00401069,17275.0,17274.0,0.04123067]
[1673294827473,0.003,17275.0,17274.0,0.04123067]
[1673294827994,0.003,17275.0,17274.0,0.62013467]
[1673294828505,0.003,17275.0,17274.0,1.61003867]
[1673294828777,0.003,17275.0,17274.0,2.33315981]
[1673294829021,0.003,17275.0,17274.0,2.61206454]
[1673294829551,0.003,17275.0,17274.0,2.061986]
[1673294829799,0.003,17275.0,17274.0,2.361986]
[1673294830310,0.003,17275.0,17274.0,2.91251698]
[1673294830567,0.003,17275.0,17274.0,3.02371698]
[1673294830833,0.003,17275.0,17274.0,3.19674768]
[1673294831086,0.003,17275.0,17274.0,3.02382944]
[1673294831335,0.003,17275.0,17274.0,3.79069535]
[1673294831841,0.00183262,17275.0,17274.0,3.96371679]
[1673294832119,0.00183262,17275.0,17274.0,4.14878653]
[1673294832654,0.00183262,17275.0,17274.0,4.43822653]
[1673294833144,0.00183262,17275.0,17274.0,4.12555084]
[1673294833403,0.00149457,17281.0,17275.0,0.4]
[1673294833687,0.00149457,17281.0,17278.0,0.1114]
[1673294833910,0.00149457,17281.0,17279.0,2.01131489]
[1673294834159,0.00149457,17281.0,17280.0,0.4]
[1673294834421,0.00149457,17281.0,17280.0,1.157406]
[1673294834681,0.68610035,17281.0,17280.0,1.157406]
[1673294834926,0.00149457,17281.0,17280.0,0.828703]
[1673294835188,0.00149457,17281.0,17280.0,0.578703]
[1673294835435,0.00149457,17281.0,17280.0,0.828703]
[1673294835687,0.00149457,17281.0,17280.0,0.84908147]
[1673294835938,0.00149457,17281.0,17280.0,1.42778447]
[1673294836455,0.06549457,17281.0,17280.0,0.85508147]
[1673294836713,0.06549457,17281.0,17280.0,1.43378447]
[1673294836963,0.06650526,17281.0,17280.0,0.85508147]
[1673294837236,0.06549457,17281.0,17280.0,0.85508147]
[1673294837999,0.06549457,17281.0,17280.0,0.27637847]
[1673294838257,0.06542797,17281.0,17280.0,0.27637847]
[1673294838509,0.06542797,17281.0,17280.0,0.57637847]
[1673294839282,0.06542797,17281.0,17280.0,0.85508147]
[1673294839538,0.06542797,17281.0,17280.0,1.43378447]
[1673294840116,0.06542797,17281.0,17280.0,1.59768836]
[1673294840375,0.06542797,17281.0,17280.0,1.95538447]
[1673294840622,0.06542797,17281.0,17280.0,2.42843074]
[1673294841410,0.06542797,17281.0,17280.0,1.95538447]
[1673294841682,0.06542797,17281.0,17280.0,2.54933214]
[1673294841944,0.06542797,17281.0,17280.0,3.02219738]
[1673294842209,0.30411655,17281.0,17280.0,1.43378447]
[1673294842460,0.06542797,17281.0,17280.0,1.43378447]
[1673294843222,0.06542797,17281.0,17280.0,0.85508147]
[1673294844771,0.06542797,17281.0,17280.0,1.43378447]
[1673294845544,0.06542797,17281.0,17280.0,2.95658447]
[1673294845810,0.06542797,17281.0,17280.0,3.42928744]
[1673294846069,0.06542797,17281.0,17280.0,4.02323511]
[1673294846596,0.06542797,17281.0,17280.0,3.80023511]
[1673294846838,0.06542797,17281.0,17280.0,3.32753214]
[1673294847092,0.06542797,17281.0,17280.0,3.80041943]
[1673294847362,0.05542797,17281.0,17280.0,3.32753214]
[1673294847625,0.05542797,17281.0,17280.0,2.44882914]
[1673294847871,0.05542797,17281.0,17280.0,3.32753214]
[1673294849150,0.05542797,17281.0,17280.0,3.02753214]
[1673294849420,0.05542797,17281.0,17280.0,1.43358447]
[1673294849656,0.05542797,17281.0,17280.0,0.85488147]
[1673294850678,0.05542797,17281.0,17280.0,0.27617847]
[1673294853455,0.05542797,17281.0,17280.0,0.85488147]
[1673294856876,0.05542797,17281.0,17280.0,1.43358447]
[1673294858021,0.05643866,17281.0,17280.0,1.43358447]
[1673294858278,0.05542797,17281.0,17280.0,1.43358447]
[1673294859215,0.05542797,17281.0,17280.0,2.01228747]
[1673294861137,0.05542797,17281.0,17280.0,3.01228747]
[1673294861366,0.05542797,17281.0,17280.0,3.31228747]
[1673294862082,0.05542797,17281.0,17280.0,2.01228747]
[1673294864153,0.05542797,17281.0,17280.0,1.43358447]
[1673294865258,0.05643866,17281.0,17280.0,0.27617847]
[1673294865719,0.05542797,17281.0,17280.0,0.27617847]
[1673294866385,0.05643866,17281.0,17280.0,0.27617847]
[1673294867020,0.05643866,17281.0,17280.0,0.89707215]
[1673294867350,0.05643866,17281.0,17280.0,0.27617847]
[1673294869404,0.05542797,17281.0,17280.0,0.27617847]
[1673294870635,0.05643866,17281.0,17280.0,0.27617847]
[1673294870886,0.05643866,17281.0,17280.0,0.85488147]
[1673294870887,0.05542797,17281.0,17280.0,0.85488147]
[1673294871684,0.05643866,17281.0,17280.0,0.85488147]
[1673294871938,0.05542797,17281.0,17280.0,0.85488147]
[1673294872687,0.77625108,17281.0,17280.0,0.27617847]
[1673294873418,0.94786581,17281.0,17280.0,0.27617847]
[1673294873903,0.77524039,17281.0,17280.0,0.27617847]
[1673294874144,0.77625108,17281.0,17280.0,0.27617847]
[1673294874394,0.77524039,17281.0,17280.0,0.27617847]
[1673294874664,0.05542797,17281.0,17280.0,0.27617847]
[1673294876891,0.2270427,17281.0,17280.0,0.27617847]
[1673294877379,1.02640251,17281.0,17280.0,0.27617847]
[1673294877624,1.60507251,17281.0,17280.0,0.27617847]
[1673294877873,1.6060832,17281.0,17280.0,0.27617847]
[1673294878619,2.1847532,17281.0,17280.0,0.27617847]
[1673294878873,2.82871535,17281.0,17280.0,0.27609084]
[1673294879120,3.66081664,17281.0,17280.0,0.27609084]
[1673294879602,4.58196847,17281.0,17280.0,0.27609084]
[1673294879864,3.49039139,17281.0,17280.0,0.27609084]
[1673294881602,3.49039139,17281.0,17280.0,0.25571237]
[1673294881847,3.31964436,17281.0,17280.0,0.25571237]
[1673294882659,3.31964436,17281.0,17280.0,0.27486845]
[1673294882925,3.89831436,17281.0,17280.0,0.27486845]
[1673294883947,4.06906139,17281.0,17280.0,0.27486845]
[1673294884766,3.89818145,17281.0,17280.0,0.27486845]
[1673294885243,4.06906139,17281.0,17280.0,0.27486845]
[1673294885508,4.49761249,17281.0,17280.0,0.27486845]
[1673294885757,4.49761249,17281.0,17280.0,1e-08]
[1673294885758,5.51916015,17281.0,17280.0,1e-08]
[1673294886012,2.098267,17278.0,17275.0,0.00015]
[1673294886263,2.78159672,17278.0,17277.0,0.25]
[1673294886515,2.78159672,17278.0,17275.0,0.00015]
[1673294886516,0.940773,17276.0,17275.0,0.00015]
[1673294886759,0.578837,17276.0,17274.0,0.02440445]
[1673294887266,0.978837,17276.0,17274.0,0.02440445]
[1673294887789,0.4,17275.0,17274.0,0.02440445]
[1673294888833,0.978871,17275.0,17274.0,0.02440445]
[1673294889080,0.978871,17275.0,17274.0,0.05240445]
[1673294889788,0.978871,17275.0,17274.0,0.02440445]
[1673294889789,0.97988169,17275.0,17274.0,0.02440445]
[1673294890356,1.09088169,17275.0,17274.0,0.02440445]
[1673294890604,1.09888169,17275.0,17274.0,0.05240445]
[1673294891109,1.46081769,17275.0,17274.0,0.05240445]
[1673294891606,2.03968869,17275.0,17274.0,0.05240445]
[1673294892122,1.67775269,17275.0,17274.0,0.05240445]
[1673294892844,2.03968869,17275.0,17274.0,0.05240445]
[1673294894100,2.61855969,17275.0,17274.0,0.05240445]
[1673294894358,3.29362713,17275.0,17274.0,0.05240445]
[1673294894604,3.2775892,17275.0,17268.0,0.6077228]
[1673294894879,2.9030726,17274.0,17263.0,0.43183507]
[1673294895141,2.9030726,17274.0,17262.0,0.77730313]
[1673294895142,0.4296992,17271.0,17265.0,1.0]
[1673294895387,1.15075445,17273.0,17268.0,0.02515358]
[1673294895630,1.15075445,17273.0,17268.0,0.02015358]
[1673294895631,0.4,17271.0,17268.0,0.02015358]
[1673294895876,2.90432081,17273.0,17268.0,0.02015358]
[1673294895877,1.51795445,17273.0,17268.0,0.02015358]
[1673294896130,1.51795445,17273.0,17268.0,0.07806061]